fUSD/lending_fUSD_20250512
["ID","MTS","AMOUNT","RATE_DAILY","PERIOD"]
[360786460,1747024248073,-400.0,0.00013698,2]
[360786461,1747024248083,-409.15764251,0.00013698,2]
[360786462,1747024248094,-400.0,0.00013698,2]
[360786463,1747024248104,-1183.8,0.00013698,2]
[360786464,1747024248114,-262.405273,0.00013698,2]
[360786465,1747024248124,-262.405273,0.00013698,2]
[360786466,1747024248134,-583.75,0.00013698,2]
[360786467,1747024248148,-400.0,0.00013698,2]
[360786468,1747024248158,-583.75,0.00013698,2]
[360786469,1747024248169,-400.0,0.00013698,2]
[360786470,1747024248180,-262.405273,0.00013698,2]
[360786471,1747024248190,-583.75,0.00013698,2]
[360786472,1747024248200,-400.0,0.00013698,2]
[360786473,1747024248210,-400.0,0.00013698,2]
[360786474,1747024248220,-216.78122321,0.00013698,2]
[360786475,1747024248270,-366.96877679,0.00013698,2]
[360786476,1747024248280,-400.0,0.00013698,2]
[360786477,1747024248289,-262.405273,0.00013698,2]
[360786478,1747024248299,-400.0,0.00013698,2]
[360786479,1747024248308,-583.75,0.00013698,2]
[360786480,1747024248318,-400.0,0.00013698,2]
[360786481,1747024248328,-406.24207338,0.00013698,2]
[360786482,1747024248337,-583.75,0.00013698,2]
[360786483,1747024248346,-262.405273,0.00013698,2]
[360786484,1747024248356,-400.0,0.00013698,2]
[360786485,1747024248366,-583.75,0.00013698,2]
[360786486,1747024248376,-262.405273,0.00013698,2]
[360786487,1747024248389,-583.75,0.00013698,2]
[360786488,1747024248399,-583.75,0.00013698,2]
[360786489,1747024248409,-262.405273,0.00013698,2]
[360786490,1747024248419,-262.405273,0.00013698,2]
[360786491,1747024248428,-262.405273,0.00013698,2]
[360786492,1747024248438,-262.405273,0.00013698,2]
[360786493,1747024248451,-400.0,0.00013698,2]
[360786494,1747024248461,-400.0,0.00013698,2]
[360786495,1747024248471,-400.0,0.00013698,2]
[360786496,1747024248480,-262.405273,0.00013698,2]
[360786497,1747024248490,-427.45419569,0.00013698,2]
[360786498,1747024248500,-262.405273,0.00013698,2]
[360786499,1747024248509,-400.0,0.00013698,2]
[360786500,1747024248519,-395.60255224,0.00013698,2]
[360786501,1747024248530,-262.405273,0.00013698,2]
[360786502,1747024248540,-262.405273,0.00013698,2]
[360786503,1747024248549,-262.405273,0.00013698,2]
[360786504,1747024248558,-262.405273,0.00013698,2]
[360786505,1747024248568,-400.0,0.00013698,2]
[360786506,1747024248577,-400.0,0.00013698,2]
[360786507,1747024248587,-400.0,0.00013698,2]
[360786508,1747024248596,-262.405273,0.00013698,2]
[360786509,1747024248606,-400.0,0.00013698,2]
[360786510,1747024248616,-262.405273,0.00013698,2]
[360786511,1747024248625,-400.0,0.00013698,2]
[360786512,1747024248634,-400.0,0.00013698,2]
[360786513,1747024248644,-262.405273,0.00013698,2]
[360786514,1747024248653,-400.0,0.00013698,2]
[360786515,1747024248663,-262.405277,0.00013698,2]
[360786516,1747024248673,-400.0,0.00013698,2]
[360786517,1747024248683,-400.0,0.00013698,2]
[360786518,1747024248693,-400.0,0.00013698,2]
[360786519,1747024248703,-400.0,0.00013698,2]
[360786520,1747024248713,-400.0,0.00013698,2]
[360786521,1747024248723,-400.0,0.00013698,2]
[360786522,1747024248732,-400.0,0.00013698,2]
[360786523,1747024248742,-400.0,0.00013698,2]
[360786524,1747024248751,-400.0,0.00013698,2]
[360786525,1747024248760,-400.0,0.00013698,2]
[360786526,1747024248770,-400.0,0.00013698,2]
[360786527,1747024248779,-820.74,0.00013698,2]
[360786528,1747024248789,-400.0,0.00013698,2]
[360786529,1747024248799,-287.97922484,0.00013698,2]
[360786530,1747024248808,-402.55567555,0.00013698,2]
[360786531,1747024248818,-400.0,0.00013698,2]
[360786532,1747024248828,-400.0,0.00013698,2]
[360786533,1747024248837,-400.0,0.00013698,2]
[360786534,1747024248847,-400.0,0.00013698,2]
[360786535,1747024248856,-400.0,0.00013698,2]
[360786536,1747024248866,-400.0,0.00013698,2]
[360786537,1747024248876,-417.56159596,0.00013698,2]
[360786538,1747024248886,-404.4408834,0.00013698,2]
[360786539,1747024248896,-2820.116503,0.00013698,2]
[360786540,1747024248906,-2820.116503,0.00013698,2]
[360786541,1747024248916,-2820.116503,0.00013698,2]
[360786542,1747024248926,-2820.116503,0.00013698,2]
[360786543,1747024248937,-464.59,0.00013698,2]
[360786544,1747024248947,-400.0,0.00013698,2]
[360786545,1747024248956,-572.62,0.00013698,2]
[360786546,1747024248966,-464.59,0.00013698,2]
[360786547,1747024248975,-572.62,0.00013698,2]
[360786548,1747024248985,-2820.116503,0.00013698,2]
[360786549,1747024248995,-464.59,0.00013698,2]
[360786550,1747024249004,-572.62,0.00013698,2]
[360786551,1747024249014,-464.59,0.00013698,2]
[360786552,1747024249023,-2820.116503,0.00013698,2]
[360786553,1747024249033,-572.62,0.00013698,2]
[360786554,1747024249042,-464.59,0.00013698,2]
[360786555,1747024249051,-572.62,0.00013698,2]
[360786556,1747024249061,-464.59,0.00013698,2]
[360786557,1747024249070,-2820.116503,0.00013698,2]
[360786558,1747024249080,-572.62,0.00013698,2]
[360786559,1747024249089,-464.59,0.00013698,2]
[360786560,1747024249099,-572.62,0.00013698,2]
[360786561,1747024249108,-2820.116503,0.00013698,2]
[360786562,1747024249118,-464.59,0.00013698,2]
[360786563,1747024249127,-572.62,0.00013698,2]
[360786564,1747024249137,-464.59,0.00013698,2]
[360786565,1747024249147,-2820.116503,0.00013698,2]
[360786566,1747024249156,-572.62,0.00013698,2]
[360786567,1747024249165,-2820.116503,0.00013698,2]
[360786568,1747024249175,-2820.116503,0.00013698,2]
[360786569,1747024249186,-2820.116503,0.00013698,2]
[360786570,1747024249195,-2426.19823567,0.00013698,2]
[360786571,1747024249277,-280.45,0.00013698,2]
[360786572,1747024249288,-113.46826733,0.00013698,2]
[360786573,1747024249298,-2820.116503,0.00013698,2]
[360786574,1747024249307,-2820.116503,0.00013698,2]
[360786575,1747024249317,-2820.116503,0.00013698,2]
[360786576,1747024249327,-400.0,0.00013698,2]
[360786577,1747024249337,-2820.116503,0.00013698,2]
[360786578,1747024249346,-2820.116503,0.00013698,2]
[360786579,1747024249356,-400.0,0.00013698,2]
[360786580,1747024249365,-1666.52408511,0.00013698,2]
[360786581,1747024249391,-1000.0,0.00013698,2]
[360786582,1747024249424,-153.59241789,0.00013698,2]
[360786583,1747024249433,-2820.116505,0.00013698,2]
[360786584,1747024249443,-400.0,0.00013698,2]
[360786585,1747024249455,-400.0,0.00013698,2]
[360786586,1747024249465,-407.4996017,0.00013698,2]
[360786587,1747024249475,-400.0,0.00013698,2]
[360786588,1747024249484,-400.0,0.00013698,2]
[360786589,1747024249494,-400.0,0.00013698,2]
[360786590,1747024249505,-400.0,0.00013698,2]
[360786591,1747024249514,-400.0,0.00013698,2]
[360786592,1747024249524,-400.0,0.00013698,2]
[360786593,1747024249535,-400.0,0.00013698,2]
[360786594,1747024249545,-400.0,0.00013698,2]
[360786595,1747024249555,-516.64,0.00013698,2]
[360786596,1747024249565,-400.0,0.00013698,2]
[360786597,1747024249575,-400.0,0.00013698,2]
[360786598,1747024249585,-400.0,0.00013698,2]
[360786599,1747024249595,-400.0,0.00013698,2]
[360786600,1747024249604,-400.0,0.00013698,2]
[360786601,1747024249614,-400.0,0.00013698,2]
[360786602,1747024249624,-400.0,0.00013698,2]
[360786603,1747024249633,-400.0,0.00013698,2]
[360786604,1747024249643,-400.0,0.00013698,2]
[360786605,1747024249653,-400.0,0.00013698,2]
[360786606,1747024249663,-412.37191061,0.00013698,2]
[360786607,1747024249673,-400.0,0.00013698,2]
[360786608,1747024249682,-434.4196111,0.00013698,2]
[360786609,1747024249692,-400.0,0.00013698,2]
[360786610,1747024249702,-400.0,0.00013698,2]
[360786611,1747024249712,-400.0,0.00013698,2]
[360786612,1747024249722,-162.26537278,0.00013698,2]
[360786613,1747024249732,-400.0,0.00013698,2]
[360786614,1747024249742,-180.52616261,0.00013698,2]
[360786615,1747024249752,-746.3,0.00013698,2]
[360786616,1747024249763,-496.65136751,0.00013698,2]
[360786617,1747024249794,-249.64863249,0.00013698,2]
[360786618,1747024249804,-400.0,0.00013698,2]
[360786619,1747024249815,-207.65735905,0.00013698,2]
[360786620,1747024249829,-538.64264095,0.00013698,2]
[360786621,1747024249839,-400.0,0.00013698,2]
[360786622,1747024249849,-746.3,0.00013698,2]
[360786623,1747024249859,-517.37436584,0.00013698,2]
[360786624,1747024249869,-746.3,0.00013698,2]
[360786625,1747024249879,-746.3,0.00013698,2]
[360786626,1747024249889,-746.3,0.00013698,2]
[360786627,1747024249899,-400.0,0.00013698,2]
[360786628,1747024249908,-746.3,0.00013698,2]
[360786629,1747024249918,-400.0,0.00013698,2]
[360786630,1747024250144,-400.0,0.00013698,2]
[360786631,1747024250154,-746.3,0.00013698,2]
[360786632,1747024250164,-497.60438632,0.00013698,2]
[360786633,1747024250174,-400.0,0.00013698,2]
[360786634,1747024250183,-400.0,0.00013698,2]
[360786635,1747024250193,-400.0,0.00013698,2]
[360786636,1747024250202,-400.0,0.00013698,2]
[360786637,1747024250212,-400.0,0.00013698,2]
[360786638,1747024250221,-400.0,0.00013698,2]
[360786639,1747024250231,-364.80203159,0.00013698,2]
[360786640,1747024250252,-35.19796841,0.00013698,2]
[360786641,1747024250263,-400.0,0.00013698,2]
[360786642,1747024250272,-400.0,0.00013698,2]
[360786643,1747024250282,-400.0,0.00013698,2]
[360786644,1747024250291,-400.0,0.00013698,2]
[360786645,1747024250300,-400.0,0.00013698,2]
[360786646,1747024250309,-429.08,0.00013698,2]
[360786647,1747024250318,-429.08,0.00013698,2]
[360786648,1747024250328,-429.08,0.00013698,2]
[360786649,1747024250337,-429.08,0.00013698,2]
[360786650,1747024250346,-429.08,0.00013698,2]
[360786651,1747024250355,-400.0,0.00013698,2]
[360786652,1747024250364,-429.08,0.00013698,2]
[360786653,1747024250374,-400.0,0.00013698,2]
[360786654,1747024250383,-429.08,0.00013698,2]
[360786655,1747024250394,-400.0,0.00013698,2]
[360786656,1747024250403,-517.23877215,0.00013698,2]
[360786657,1747024250412,-429.08,0.00013698,2]
[360786658,1747024250421,-2591.66,0.00013698,2]
[360786659,1747024250430,-429.08,0.00013698,2]
[360786660,1747024250439,-400.0,0.00013698,2]
[360786661,1747024250449,-400.0,0.00013698,2]
[360786662,1747024250460,-400.0,0.00013698,2]
[360786663,1747024250469,-1092.62,0.00013698,2]
[360786664,1747024250479,-529.62527023,0.00013698,2]
[360786665,1747024250489,-400.0,0.00013698,2]
[360786666,1747024250498,-400.0,0.00013698,2]
[360786667,1747024250507,-400.0,0.00013698,2]
[360786668,1747024250517,-400.0,0.00013698,2]
[360786669,1747024250531,-400.0,0.00013698,2]
[360786670,1747024250541,-400.0,0.00013698,2]
[360786671,1747024250551,-288.97062087,0.00013698,2]
[360786672,1747024250560,-400.0,0.00013698,2]
[360786673,1747024250570,-513.08130456,0.00013698,2]
[360786674,1747024250579,-250.0,0.00013698,2]
[360786675,1747024250589,-250.0,0.00013698,2]
[360786676,1747024250599,-250.0,0.00013698,2]
[360786677,1747024250608,-1370.09,0.00013698,2]
[360786678,1747024250617,-400.0,0.00013698,2]
[360786679,1747024250626,-250.0,0.00013698,2]
[360786680,1747024250636,-400.0,0.00013698,2]
[360786681,1747024250645,-400.0,0.00013698,2]
[360786682,1747024250654,-276.67285405,0.00013698,2]
[360786683,1747024250663,-250.0,0.00013698,2]
[360786684,1747024250673,-400.0,0.00013698,2]
[360786685,1747024250682,-366.47497578,0.00013698,2]
[360786686,1747024250691,-400.0,0.00013698,2]
[360786687,1747024250701,-400.0,0.00013698,2]
[360786688,1747024250710,-400.0,0.00013698,2]
[360786689,1747024250721,-400.0,0.00013698,2]
[360786690,1747024250731,-400.0,0.00013698,2]
[360786691,1747024250740,-400.0,0.00013698,2]
[360786692,1747024250749,-400.0,0.00013698,2]
[360786693,1747024250759,-400.0,0.00013698,2]
[360786694,1747024250768,-407.49968675,0.00013698,2]
[360786695,1747024250777,-400.0,0.00013698,2]
[360786696,1747024250786,-400.0,0.00013698,2]
[360786697,1747024250796,-400.0,0.00013698,2]
[360786698,1747024250805,-400.0,0.00013698,2]
[360786699,1747024250814,-400.0,0.00013698,2]
[360786700,1747024250824,-400.0,0.00013698,2]
[360786701,1747024250833,-400.0,0.00013698,2]
[360786702,1747024250842,-400.0,0.00013698,2]
[360786703,1747024250851,-400.0,0.00013698,2]
[360786704,1747024250861,-155.13829108,0.00013698,2]
[360786705,1747024250870,-272.28310328,0.00013698,2]
[360786706,1747024250880,-608.29,0.00013698,2]
[360786707,1747024250889,-608.29,0.00013698,2]
[360786708,1747024250900,-608.29,0.00013698,2]
[360786709,1747024250909,-608.29,0.00013698,2]
[360786710,1747024250918,-400.0,0.00013698,2]
[360786711,1747024250928,-608.29,0.00013698,2]
[360786712,1747024250937,-400.0,0.00013698,2]
[360786713,1747024250947,-427.0540203,0.00013698,2]
[360786714,1747024250957,-849.36,0.00013698,2]
[360786715,1747024250966,-608.29,0.00013698,2]
[360786716,1747024250975,-608.29,0.00013698,2]
[360786717,1747024250986,-1836.61,0.00013698,2]
[360786718,1747024250995,-608.29,0.00013698,2]
[360786719,1747024251004,-608.29,0.00013698,2]
[360786720,1747024251014,-406.76,0.00013698,2]
[360786721,1747024251023,-406.76,0.00013698,2]
[360786722,1747024251032,-406.76,0.00013698,2]
[360786723,1747024251041,-406.76,0.00013698,2]
[360786724,1747024251051,-406.76,0.00013698,2]
[360786725,1747024251061,-371.33858358,0.00013698,2]
[360786726,1747024251070,-406.76,0.00013698,2]
[360786727,1747024251080,-406.76,0.00013698,2]
[360786728,1747024251090,-650.62,0.00013698,2]
[360786729,1747024251100,-406.76,0.00013698,2]
[360786730,1747024251109,-406.76,0.00013698,2]
[360786731,1747024251119,-400.0,0.00013698,2]
[360786732,1747024251128,-400.0,0.00013698,2]
[360786733,1747024251138,-400.0,0.00013698,2]
[360786734,1747024251149,-400.0,0.00013698,2]
[360786735,1747024251159,-400.0,0.00013698,2]
[360786736,1747024251168,-400.0,0.00013698,2]
[360786737,1747024251179,-400.0,0.00013698,2]
[360786738,1747024251188,-400.0,0.00013698,2]
[360786739,1747024251198,-400.0,0.00013698,2]
[360786740,1747024251209,-400.0,0.00013698,2]
[360786741,1747024251219,-400.0,0.00013698,2]
[360786742,1747024251228,-400.0,0.00013698,2]
[360786743,1747024251238,-400.0,0.00013698,2]
[360786744,1747024251247,-239.71994798,0.00013698,2]
[360786745,1747024251257,-400.0,0.00013698,2]
[360786746,1747024251268,-400.0,0.00013698,2]
[360786747,1747024251278,-400.0,0.00013698,2]
[360786748,1747024251288,-400.0,0.00013698,2]
[360786749,1747024251298,-400.0,0.00013698,2]
[360786750,1747024251307,-411.71135287,0.00013698,2]
[360786751,1747024251316,-400.0,0.00013698,2]
[360786752,1747024251326,-400.0,0.00013698,2]
[360786753,1747024251336,-400.0,0.00013698,2]
[360786754,1747024251347,-400.0,0.00013698,2]
[360786755,1747024251356,-400.0,0.00013698,2]
[360786756,1747024251365,-400.0,0.00013698,2]
[360786757,1747024251375,-400.0,0.00013698,2]
[360786758,1747024251386,-400.0,0.00013698,2]
[360786759,1747024251397,-400.0,0.00013698,2]
[360786760,1747024251407,-400.0,0.00013698,2]
[360786761,1747024251416,-512.36760354,0.00013698,2]
[360786762,1747024251427,-400.0,0.00013698,2]
[360786763,1747024251438,-400.0,0.00013698,2]
[360786764,1747024251451,-400.0,0.00013698,2]
[360786765,1747024251460,-400.0,0.00013698,2]
[360786766,1747024251471,-400.0,0.00013698,2]
[360786767,1747024251480,-400.0,0.00013698,2]
[360786768,1747024251490,-400.0,0.00013698,2]
[360786769,1747024251499,-400.0,0.00013698,2]
[360786770,1747024251508,-400.0,0.00013698,2]
[360786771,1747024251518,-400.0,0.00013698,2]
[360786772,1747024251528,-400.0,0.00013698,2]
[360786773,1747024251537,-400.0,0.00013698,2]
[360786774,1747024251546,-584.19,0.00013698,2]
[360786775,1747024251555,-400.0,0.00013698,2]
[360786776,1747024251564,-400.0,0.00013698,2]
[360786777,1747024251573,-400.0,0.00013698,2]
[360786778,1747024251583,-400.0,0.00013698,2]
[360786779,1747024251592,-400.0,0.00013698,2]
[360786780,1747024251601,-404.48974708,0.00013698,2]
[360786781,1747024251611,-400.0,0.00013698,2]
[360786782,1747024251621,-400.0,0.00013698,2]
[360786783,1747024251630,-400.0,0.00013698,2]
[360786784,1747024251640,-400.0,0.00013698,2]
[360786785,1747024251649,-400.0,0.00013698,2]
[360786786,1747024251659,-494.07962141,0.00013698,2]
[360786787,1747024251668,-400.0,0.00013698,2]
[360786788,1747024251677,-400.0,0.00013698,2]
[360786789,1747024251686,-400.0,0.00013698,2]
[360786790,1747024251695,-400.0,0.00013698,2]
[360786791,1747024251706,-531.96582466,0.00013698,2]
[360786792,1747024251715,-400.0,0.00013698,2]
[360786793,1747024251724,-400.0,0.00013698,2]
[360786794,1747024251734,-400.0,0.00013698,2]
[360786795,1747024251743,-400.0,0.00013698,2]
[360786796,1747024251752,-400.0,0.00013698,2]
[360786797,1747024251761,-400.0,0.00013698,2]
[360786798,1747024251771,-400.0,0.00013698,2]
[360786799,1747024251781,-400.0,0.00013698,2]
[360786800,1747024251790,-400.0,0.00013698,2]
[360786801,1747024251800,-400.0,0.00013698,2]
[360786802,1747024251810,-400.0,0.00013698,2]
[360786803,1747024251820,-400.0,0.00013698,2]
[360786804,1747024251830,-400.0,0.00013698,2]
[360786805,1747024251839,-400.0,0.00013698,2]
[360786806,1747024251851,-400.0,0.00013698,2]
[360786807,1747024251861,-400.0,0.00013698,2]
[360786808,1747024251871,-400.0,0.00013698,2]
[360786809,1747024251880,-400.0,0.00013698,2]
[360786810,1747024251891,-400.0,0.00013698,2]
[360786811,1747024251900,-400.0,0.00013698,2]
[360786812,1747024251910,-400.0,0.00013698,2]
[360786813,1747024251919,-510.74536885,0.00013698,2]
[360786814,1747024251930,-400.0,0.00013698,2]
[360786815,1747024251941,-400.0,0.00013698,2]
[360786816,1747024251951,-400.0,0.00013698,2]
[360786817,1747024251961,-400.0,0.00013698,2]
[360786818,1747024251969,-400.0,0.00013698,2]
[360786819,1747024251979,-400.0,0.00013698,2]
[360786820,1747024251988,-413.02585751,0.00013698,2]
[360786821,1747024251996,-400.0,0.00013698,2]
[360786822,1747024252004,-256.86431806,0.00013698,2]
[360786823,1747024252012,-400.0,0.00013698,2]
[360786824,1747024252021,-400.0,0.00013698,2]
[360786825,1747024252030,-400.0,0.00013698,2]
[360786826,1747024252039,-400.0,0.00013698,2]
[360786827,1747024252048,-400.0,0.00013698,2]
[360786828,1747024252057,-400.0,0.00013698,2]
[360786829,1747024252067,-400.0,0.00013698,2]
[360786830,1747024252076,-48.76127766,0.00013698,2]
[360786831,1747024272170,1141.0958385,0.00028,120]
[360786832,1747024286271,159.16,0.00012727,2]
[360786833,1747024347536,333.14,0.0001178,2]
[360786834,1747024347561,2666.86,0.0001178,2]
[360786890,1747024729850,2000.0,0.00028,120]
[360786891,1747024746450,2000.0,0.00028,120]
[360786892,1747024781750,2000.0,0.00028,120]
[360786895,1747024935416,2472.73485821,0.00028,120]
[360786898,1747025158739,769.16,0.00010674,2]
[360786899,1747025189476,-327.333586,0.00012572,2]
[360786901,1747025205477,-352.56143732,0.00012572,2]
[360786903,1747025217563,-283.99014983,0.00012571,2]
[360786904,1747025232628,-282.46097747,0.00012508,2]
[360786908,1747025248549,-215.14419553,0.00012508,2]
[360786909,1747025248571,-115.80597324,0.00012571,2]
[360786910,1747025262844,-100.20387693,0.00012571,2]
[360786911,1747025262868,-186.20793429,0.00012571,2]
[360786912,1747025277572,-280.80880739,0.00012571,2]
[360786913,1747025292655,-150.0,0.0001257,2]
[360786914,1747025292679,-32.98325832,0.00012571,2]
[360786915,1747025292701,-12.80909232,0.00012571,2]
[360786916,1747025307535,-162.88175433,0.00012571,2]
[360786917,1747025322625,-151.53,0.0001257,2]
[360786918,1747025338166,-230.26909439,0.0001257,2]
[360786919,1747025352626,-153.83464926,0.00012565,2]
[360786927,1747025367575,-290.99112921,0.00012565,2]
[360786930,1747025382674,-250.0,0.0001256,2]
[360786931,1747025382697,-21.45422153,0.00012565,2]
[360786932,1747025382720,-38.61922366,0.00012569,2]
[360786938,1747025397512,-254.38508345,0.00012565,2]
[360786941,1747025412600,-187.58670763,0.00012565,2]
[360786942,1747025427713,-159.08820892,0.00012565,2]
[360786943,1747025427738,-10.2252246,0.00012569,2]
[360786947,1747025432036,-1189.7747754,0.00012569,2]
[360786948,1747025432045,-300.0,0.00012569,2]
[360786949,1747025432055,-118.20090561,0.0001257,2]
[360786950,1747025432064,-79.22177096,0.0001257,2]
[360786951,1747025432082,-123.7445175,0.0001257,2]
[360786952,1747025432091,-500.0,0.0001257,2]
[360786953,1747025432100,-500.0,0.0001257,2]
[360786954,1747025432109,-500.0,0.0001257,2]
[360786955,1747025432118,-500.0,0.0001257,2]
[360786956,1747025432128,-500.0,0.0001257,2]
[360786957,1747025432137,-500.0,0.0001257,2]
[360786958,1747025432146,-500.0,0.0001257,2]
[360786959,1747025432155,-643.34420376,0.0001257,2]
[360786960,1747025432165,-320.10497668,0.00012572,2]
[360786961,1747025432175,-159.38,0.00012655,2]
[360786962,1747025432184,-250.0,0.00012679,2]
[360786963,1747025432193,-380.88,0.00012704,2]
[360786964,1747025432204,-769.16,0.00012938,2]
[360786965,1747025432213,-315.57046642,0.0001315,2]
[360786966,1747025432248,-302.87621984,0.0001315,2]
[360786967,1747025432266,-800.0,0.0001315,2]
[360786968,1747025432300,-1581.55331374,0.0001315,2]
[360786971,1747025432310,-1180.631765,0.00013422,2]
[360786972,1747025432319,-209.08312554,0.0001349,2]
[360786975,1747025432328,-190.78726104,0.0001349,2]
[360786977,1747025432338,-151.0,0.0001349,2]
[360786978,1747025432348,-219.78991741,0.0001349,2]
[360786979,1747025432357,-668.65185757,0.0001349,2]
[360786981,1747025432366,-207.4,0.0001349,2]
[360786983,1747025432375,-2865.863,0.00013491,2]
[360786985,1747025432384,-226.6915,0.00013491,2]
[360786987,1747025432393,-317.5069,0.00013491,2]
[360786989,1747025432403,-1000.0,0.00013497,2]
[360786991,1747025432412,-692.85097173,0.00013498,2]
[360786993,1747025432421,-2011.7613,0.00013498,2]
[360786995,1747025432430,-9995.9897,0.00013498,2]
[360786997,1747025432439,-16689.5544,0.00013498,2]
[360786999,1747025432449,-352.72,0.000135,2]
[360787001,1747025432459,-1156.34,0.000135,2]
[360787003,1747025432468,-150.09,0.000135,2]
[360787005,1747025432477,-6316.2222,0.000135,2]
[360787007,1747025432486,-379.37,0.000135,2]
[360787009,1747025432495,-1138.91,0.000135,2]
[360787011,1747025432505,-1000.0,0.00013545,2]
[360787013,1747025432514,-12500.0,0.00013565,2]
[360787015,1747025432523,-12500.0,0.00013574,2]
[360787017,1747025432532,-12500.0,0.00013582,2]
[360787019,1747025432541,-16851.0356,0.00013591,2]
[360787021,1747025432551,-2435.63975018,0.00013591,2]
[360787023,1747025432559,-12500.0,0.00013591,2]
[360787025,1747025432568,-2435.63975014,0.00013592,2]
[360787026,1747025432578,-2435.63975014,0.00013593,2]
[360787027,1747025432587,-2435.63975014,0.00013593,2]
[360787028,1747025432596,-161.11830045,0.00013594,2]
[360787029,1747025432605,-2435.63975014,0.00013594,2]
[360787030,1747025432615,-161.11830043,0.00013595,2]
[360787031,1747025432623,-2435.63975014,0.00013595,2]
[360787032,1747025432632,-161.11830043,0.00013595,2]
[360787033,1747025432641,-2435.63975014,0.00013596,2]
[360787034,1747025432651,-161.11830043,0.00013596,2]
[360787035,1747025432660,-2435.63975014,0.00013596,2]
[360787036,1747025432669,-161.11830043,0.00013597,2]
[360787037,1747025432678,-2435.63975014,0.00013597,2]
[360787038,1747025432688,-161.11830043,0.00013597,2]
[360787039,1747025432698,-2435.63975014,0.00013598,2]
[360787040,1747025432708,-290.39562136,0.00013598,2]
[360787041,1747025432717,-482.18,0.00013598,2]
[360787043,1747025432727,-3366.7472,0.00013598,2]
[360787045,1747025432736,-3741.4999,0.00013598,2]
[360787047,1747025432745,-12500.0,0.000136,2]
[360787049,1747025432755,-300.0,0.000136,2]
[360787051,1747025432763,-150.57,0.000136,2]
[360787053,1747025432773,-1156.34,0.000136,2]
[360787055,1747025432782,-150.09,0.000136,2]
[360787057,1747025432791,-150.78,0.000136,2]
[360787059,1747025432800,-352.72,0.000136,2]
[360787061,1747025432809,-325.0,0.000136,2]
[360787063,1747025432818,-1156.34,0.000136,2]
[360787065,1747025432830,-352.72,0.000136,2]
[360787066,1747025432849,-150.09,0.000136,2]
[360787069,1747025432858,-12264.04544818,0.000136,2]
[360787071,1747025432868,-452.44,0.000136,2]
[360787073,1747025432877,-1156.34,0.000136,2]
[360787074,1747025432887,-352.72,0.000136,2]
[360787077,1747025432897,-133700.92333645,0.000136,2]
[360787079,1747025432909,-606.02223129,0.000136,2]
[360787081,1747025432920,-315.94,0.000136,2]
[360787086,1747025432955,-21047.79213723,0.000136,2]
[360787088,1747025432964,-352.72,0.000136,2]
[360787090,1747025432973,-913.84,0.000136,2]
[360787092,1747025432982,-5162.24243946,0.0001364,3]
[360787094,1747025432991,-3107.564,0.00013651,2]
[360787096,1747025433000,-184.413,0.00013651,2]
[360787097,1747025433009,-255.0,0.00013663,2]
[360787099,1747025433019,-167.0,0.00013671,2]
[360787101,1747025433028,-504.00089908,0.00013673,2]